Cogmind - Beta 12 @@@ ROGUE MODE // 2023.12.03 @ 17:52:58 Player: charson Result: Destroyed self via exploding Nuclear Reactor Performance ------------- Evolutions (0) 0 Regions Visited (1) 200 Robots Destroyed (17) 85 Value Destroyed (430) 430 Prototype IDs (3) 60 Alien Tech Used (0) 0 Bonus (0) 0 TOTAL SCORE: 775 Bonus ------- None Cogmind --------- Core Integrity 0/250 Matter 288/300 Energy 100/100 System Corruption 0% Temperature Cool (0) Movement Core (150) Ox2 Location -10/Materials Parts ------- > --- POWER (1) -------- (None) > --- PROPULSION (2) --- (None) > --- UTILITY (2) ------ Sensor Array Signal Interpreter > --- WEAPON (2) ------- Heavy Assault Rifle Heavy Assault Rifle > --- INVENTORY (5) ---- Structural Scanner Sensor Array Signal Interpreter Heavy Assault Rifle Datajack Peak State ------------ > --- POWER ------------ (None) > --- PROPULSION ------- (None) > --- UTILITY ---------- Signal Interpreter Improved Terrain Scanner > --- WEAPON ----------- Heavy Assault Rifle Heavy Assault Rifle > --- INVENTORY -------- Structural Scanner Sensor Array Signal Interpreter Light Assault Rifle Datajack [Rating: 8] Favorites ----------- Power Light Ion Engine Engine Light Ion Engine Propulsion None Utility Signal Interpreter Device Improved Terrain Scanner Processor Signal Interpreter Weapon Heavy Assault Rifle Energy Gun Medium Laser Ballistic Gun Heavy Assault Rifle Build | -11 -10 ------- Run | Jun Mat Slots Evolved . | . . Power . | . . Propulsion . | . . Utility . | . . Weapon . | . . Parts Attached 9 | 3 6 Power 1 | . 1 Engine 1 | . 1 Core . | . . Reactor . | . . Propulsion . | . . Treads . | . . Leg . | . . Wheel . | . . Hover . | . . Flight . | . . Utility 3 | 1 2 Device 2 | 1 1 Storage . | . . Processor 1 | . 1 Hackware . | . . Protection . | . . Artifact . | . . Weapon 5 | 2 3 Energy Gun 2 | 2 . Energy Cannon . | . . Ballistic Gun 3 | . 3 Ballistic Cannon . | . . Launcher . | . . Special Weapon . | . . Impact Weapon . | . . Slashing Weapon . | . . Piercing Weapon . | . . Special Melee Weapon . | . . Unidentified Prototypes . | . . Parts Lost 1 | . 1 Power . | . . Propulsion . | . . Utility . | . . Weapon 1 | . 1 Highest Loss Streak 1 | . 1 To Critical Strikes . | . . Average Slot Usage (%) 57 | . 57 Engine 1 | . 1 Device 13 | . 13 Processor 13 | . 13 Energy Gun 13 | . 13 Ballistic Gun 14 | . 14 Naked Turns . | . . Heaviest Build 8 | 5 8 Greatest Support 3 | 3 3 Greatest Overweight (x) 2 | 1 2 Average Overweight (x) 1 | . 1 Largest Inventory Capacity 5 | 5 5 Average Capacity 5 | 5 5 Most Carried 5 | 4 5 Average Carried 4 | 2 4 Final Capacity 5 | 5 5 Final Carried 5 | 4 5 Class Distribution -------------------- 100% | Mutant Dominant Class ---------------- Mutant | -10/Materials Resources | -11 -10 ----------- Run | Jun Mat Matter Collected 452 | 230 222 Remotely . | . . Salvage Created 650 | 111 539 Parts 40 | 6 34 Haulers Intercepted 2 | . 2 Recyclers Shooed . | . . Parts Field Recycled . | . . Retrieved Matter . | . . Parts Self-Destructed . | . . Prevented . | . . Kills | -11 -10 ------- Run | Jun Mat Combat Hostiles Destroyed 10 | . 10 Guns 9 | . 9 AOE 1 | . 1 Classes Destroyed 6 | 2 4 Builder 1 | . 1 Tunneler 1 | 1 . Hauler 2 | . 2 Recycler 1 | 1 . Watcher 2 | . 2 Grunt 10 | . 10 Best Kill Streak 3 | 2 3 Combat Bots Only 3 | . 3 Max Kills in Single Turn 2 | 1 2 Gunslinging . | . . Exploded 1 | . 1 Melee . | . . Uniques/NPCs Destroyed . | . . Combat | -11 -10 -------- Run | Jun Mat Damage Taken 457 | . 457 Core 252 | . 252 Absorbed by Shields . | . . Core Remaining (%) 100 | 100 . Volleys Fired 64 | 6 58 Largest 2 | 2 2 Hottest 90 | 90 90 Shots Fired 127 | 12 115 Gun 127 | 12 115 Cannon . | . . Launcher . | . . Special . | . . Kinetic 58 | . 58 Thermal 41 | 6 35 Explosive . | . . Electromagnetic 28 | 6 22 Robot Hit Streak 11 | 4 11 Robot Miss Streak 4 | 2 4 Penetration Max . | . . Secondary Targets . | . . Shots Hit Robots 89 | 8 81 Core Hits 28 | 3 25 Critical Kills . | . . Critical Parts Destroyed . | . . Critical Strikes 8 | 1 7 Burn 8 | 1 7 Melee Attacks . | . . Impact . | . . Slashing . | . . Piercing . | . . Sneak Attacks . | . . Combat Hostiles . | . . Follow-up Attacks . | . . Damage Inflicted 1600 | 101 1499 Guns 1273 | 101 1172 Cannons . | . . Explosions 327 | . 327 Melee . | . . Ramming . | . . Kinetic 583 | . 583 Thermal 542 | 63 479 Explosive 211 | . 211 Electromagnetic 264 | 38 226 Impact . | . . Slashing . | . . Piercing . | . . Highest Corruption . | . . Average Corruption . | . . Corruption Purged . | . . Corruption Blocked . | . . Overload Shots . | . . Overflow Damage . | . . Projectiles . | . . Explosions . | . . Melee . | . . Knockbacks . | . . Impact . | . . Kinetic . | . . Secondary . | . . Self-Inflicted Damage 134 | . 134 Shots 2 | . 2 Rammed . | . . Targets Rammed . | . . Kicked . | . . Crushed . | . . Highest Temperature 193 | 30 193 Average Temperature 50 | 14 57 Received Heat Transfer 210 | . 210 Siege Activations . | . . Robots Corrupted . | . . Combat Hostiles . | . . Parts Fried . | . . Impact Corruptions . | . . Robots Melted . | . . Combat Hostiles . | . . Parts Melted 2 | 1 1 Heat Transferred 1863 | 259 1604 Parts Sabotaged . | . . Parts Stolen . | . . Parts Stripped . | . . Power Chain Reactions 1 | . 1 Missiles Intercepted . | . . Alert | -11 -10 ------- Run | Jun Mat Peak Influence 325 | 10 325 Initial 6 | . 6 Average 162 | 4 174 Maximum Alert Level 1 | . 1 Low Security (%) 66 | 100 63 Level 1 33 | . 36 Level 2 . | . . Level 3 . | . . Level 4 . | . . Level 5 . | . . High Security . | . . Max Security . | . . Squads Dispatched 2 | . 2 Investigation 1 | . 1 Extermination . | . . Reinforcement 1 | . 1 Assault . | . . Garrison . | . . Intercept . | . . Searches Triggered . | . . Construction Impeded . | . . Haulers Reinforced . | . . Active Scanning Responses . | . . Cargo Convoy Interrupts . | . . Stealth | -11 -10 --------- Run | Jun Mat Distress Signals 1 | . 1 Communications Jammed . | . . Distress Signals . | . . Times Spotted 24 | . 24 Peak Tracking Total 5 | . 5 Tactical Retreats 6 | . 6 Traps | -11 -10 ------- Run | Jun Mat Traps Triggered 1 | . 1 Indirectly . | . . Trap Hack Attempts . | . . Triggered . | . . Disarmed . | . . Reprogrammed . | . . Reused . | . . Traps Extracted . | . . Installed . | . . Triggered . | . . Machines | -11 -10 ---------- Run | Jun Mat Machines Disabled 1 | . 1 Max in Single Turn 1 | . 1 Machines Repaired . | . . Machines Sabotaged . | . . Overloaded Fab Kills . | . . Hacking | -11 -10 --------- Run | Jun Mat Machines Accessed 5 | . 5 Terminals 5 | . 5 Fabricators . | . . Repair Stations . | . . Recycling Units . | . . Scanalyzers . | . . Garrison Access . | . . Total Hacks 14 | . 14 Successful 4 | . 4 Failed 10 | . 10 Catastrophic 2 | . 2 Database Lockouts . | . . Manual 5 | . 5 Terminals 14 | . 14 Fabricators . | . . Repair Stations . | . . Recycling Units . | . . Scanalyzers . | . . Garrison Access . | . . Terminal Hacks 4 | . 4 Robot Analysis 2 | . 2 Prototype ID Bank 1 | . 1 Terminal Index 1 | . 1 Fabricator Hacks . | . . Repair Station Hacks . | . . Recycling Unit Hacks . | . . Scanalyzer . | . . Garrison Access Hacks . | . . Unauthorized Hacks . | . . Terminals . | . . Fabricators . | . . Repair Stations . | . . Recycling Units . | . . Scanalyzers . | . . Garrison Access . | . . Data Cores Recovered . | . . Used . | . . Hacking Detections 5 | . 5 Full Trace Events . | . . Feedback Events . | . . Feedback Blocked . | . . Robot Schematics Acquired . | . . Robots Built . | . . Authchips . | . . Time . | . . Total Robot Build Rating . | . . Part Schematics Acquired . | . . Parts Built . | . . Authchips . | . . Time . | . . Total Part Build Rating . | . . Parts Repaired . | . . Time . | . . Parts Recycled . | . . Recycled Matter . | . . Retrieved Matter . | . . Retrieved Components . | . . Parts Scanalyzed . | . . Part Schematics Acquired . | . . Parts Damaged . | . . Bothacking | -11 -10 ------------ Run | Jun Mat Used RIF Installer . | . . Robots Hacked . | . . Non-combat . | . . Combat . | . . Robot Hacks Applied . | . . Relay Couplers Released . | . . Fabnet Peak Effective % . | . . Robots Rewired . | . . Allies Hacked . | . . Hacks Repelled . | . . Allies | -11 -10 -------- Run | Jun Mat Total Allies . | . . Largest Group . | . . Highest-Rated Group . | . . Highest-Rated Ally . | . . Total Orders . | . . Ally Attacks . | . . Total Damage . | . . Kills . | . . Allies Corrupted . | . . Allies Melted . | . . Intel | -11 -10 ------- Run | Jun Mat Robot Analysis Total 2 | . 2 Derelict Logs Recovered . | . . Drone Launches . | . . Drone Recoveries . | . . Exploration | -11 -10 ------------- Run | Jun Mat Turns Passed 790 | 58 732 Spaces Moved 453 | 34 419 Core 453 | 34 419 Treads . | . . Legs . | . . Wheels . | . . Hover . | . . Flight . | . . Fastest Speed 50 | 50 100 Average Speed 117 | 94 119 Slowest Speed 150 | 100 150 Overloaded Moves . | . . Propulsion Burnouts . | . . Robots Hopped . | . . Cave-ins Triggered . | . . Exploration Rate (%) 38 | 3 73 Regions Visited 1 Branch Regions . Pre-discovered Areas . | . . Known Exits Taken . | . . Unknown Exits Taken 1 | 1 . Scrap Searched . | . . Spaces Dug . | . . Terrain Destroyed 5 | . 5 Melee . | . . Projectile . | . . AOE 5 | . 5 Terrain Rammed . | . . Walls Destroyed . | . . Machines Disabled . | . . Actions | -11 -10 --------- Run | Jun Mat Total 587 | 46 541 Wait 42 | . 42 Move 452 | 33 419 Hop . | . . Pick Up 11 | 4 7 Fast Attach 6 | 3 3 Attach 2 | . 2 Detach 1 | . 1 Swap 1 | . 1 Drop 8 | . 8 Fire 64 | 6 58 Melee . | . . Ram . | . . Kick . | . . Crush . | . . Escape Stasis . | . . Rewire . | . . Trap . | . . Miscellaneous . | . . Route ------- -11/Junkyard -10/Materials (discovered 2 exits: [*Mat x2]) History --------- Turn | Location | Event 6 | -11/Junkyard | Discovered new exit (range 16) 59 | -11/Junkyard | Entered Materials 208 | -10/Materials | Core integrity fell below 50% 312 | -10/Materials | Build established: Mutant 437 | -10/Materials | Discovered new exit (range 15) 700 | -10/Materials | Discovered new exit (range 4) 717 | -10/Materials | Core integrity fell below 20% 791 | -10/Materials | Destroyed self via exploding Nuclear Reactor Last Messages --------------- 00651_ W-16 Scout destroyed. 00657_ Dropped Imp. Terrain Scanner. 00658_ Acquired 21 matter. 00660_ Acquired Sensor Array. 00664_ Dropped Signal Interpreter. 00664_ Acquired Signal Interpreter. 00677_ Connecting with Terminal... 00700_ EXIT=FOUND 00704_ Triggered Alarm Trap. 00704_ An alarm sounds. 00704_ ALERT: Alarm triggered, dispatching investigation squad. 00710_ G-34 Mercenary destroyed. 00722_ U-05 Engineer builds a Door. 00731_ G-34 Mercenary destroyed. 00734_ Acquired 30 matter. 00738_ Acquired 47 matter. 00740_ Acquired 16 matter. 00791_ Nuclear Reactor explodes. 00791_ A-02 Transporter destroyed. 00791_ U-05 Engineer destroyed. Map ----- +----------------------------------------------------+ | ???????????????###########?????????????????????? | | ???????????????# #??????#?????????#????? | | ???????????????# T #?#?????????#??#??????? | | ???????????????# #?##??#??????????????#? | | ???????????????# !!! #??????#????????#?????? | | ????????#####??# !!! #????#???????#????????? | | ?######## #??# !!! #?#??############?????? | | ?# =# < #??# #????## !! !#?????? | | ?# [ !#= #??# ####### =!!#?????? | | ?# = +*% ##########+### # ! #??#??? | | ?# """=# !!!= # #?????? | | ?# """ #* = ! T + #?????? | | ?# """ # # """"" #??#??? | | ?#####################/### # """"" #?????# | | ???????????????????? ## ## """"" #????#? | | ?????????????????? ## ############???#?? | | ???????????????? ## ######??#????#???? | | ?##????????????# """"""" ## ##"T"###??##?????? | | ???????????????# """"""" ## #????????#? | | ???????????????# """"""" ## #??#######? | | ????????????? ?# """"""" ## """ #? ? | | ??#??????????????""??""" ## """ #? ?? | | ????????????????????????### """ # ?? | | ??????????????????????????# # """ ? | | ?????"???????????########## + """ !? | | ?????"???? ?# @ """ # """ !! ? | | ?????????? t = """ # !! ?? | | ?#??????????# ! """ #? ! ?? | | ???? ? ????## """ ![[ ##########? | | ??#? ?? ?????# """ %[ !!#?????? | | ??????????? ?# """ ! [ """ !!#?????? | | #?????????#??# """ ==#?????? | | ?????????????# """ ==#?????? | | ???#?????#???# """ """ [#?????? | | ???#?????????# """ """ [[ #?????# | | ????#???#???## x """ """ ####+######?????? | | ?##??????????# #? ?????????? | | ????????#????# # ???????? | | ############## """ """ # #?????? | | """ """ # #?????? | | """ """ # #?????? | | # #?????? | | ############## #* #?????? | | ??????######### # #?????? | | #?#????# # ### ###########???#?? | | ?#??#??# """ =+% #?# #??????? ???????? | | ?##?#??# """ [# ### #?"???????#?????? | | ???????# """ # ####### #???????????????? | | #??##??# # #?????# #???????????????# | | ???##??# = ! # ######???#?# #???????????????? | +----------------------------------------------------+ Best States ------------- Heat Dissipation 25 Energy Generation 10 Energy Capacity 125 Matter Stores 300 Matter Capacity 300 Sight Range 16 Robot Scan Range 14 Terrain Scan Range 16 Terrain Scan Density 10 Evasion (%) 40 Item Schematics ----------------- None Robot Schematics ------------------ None Fabricated ------------ Nothing Alien Tech Used ----------------- None Achievements -------------- None Challenges ------------ None Game ------ Seed MomentumHardcellJammer Manual? 1 Play Time 00:10:26 Cumulative 49.2 hours Start 2023.12.03 @ 17:47:28 End 2023.12.03 @ 17:52:58 Sessions 1 Manual Loads 0 Difficulty Rogue Special Mode None Game No. 34 Rogue 34 Adventurer 0 Explorer 0 Win Type - Total 0 Types 0/0/0/0/0/0/0/0/0 Lore% 47 Gallery% 53 Achievement% 46 Wizard Run 0 Options --------- ASCII 0 Keyboard 1 Movement Numpad Keybinds 0 Fullscreen 1 Font 18/SmallcapsGlow Map View 76x50 Tactical HUD 1 Map Filters NONE Filters NONE Steam 1 RUN: 9a5c972e-0546-4416-b720-e7c6b9e80e53